[Event "Early-Titled-Tuesday-Blitz-May-28-2024"]
[Site "Chess.com"]
[Date "2024.05.28"]
[Round "5"]
[White "briesmas"]
[Black "VirtualCoach"]
[Result "1-0"]
[WhiteElo "2408"]
[BlackElo "2191"]
[TimeControl "180+1"]
[EndTime "8:57:03 PDT"]
[Termination "briesmas won by resignation"]

1. e4 {[%clk 0:02:53]} 1... c5 {[%clk 0:02:59.4]} 2. Nf3 {[%clk 0:02:52.5]} 2...
d6 {[%clk 0:02:59]} 3. d4 {[%clk 0:02:50.8]} 3... cxd4 {[%clk 0:02:59.9]} 4.
Nxd4 {[%clk 0:02:50.6]} 4... Nf6 {[%clk 0:03:00.3]} 5. Nc3 {[%clk 0:02:49.7]}
5... a6 {[%clk 0:03:00.6]} 6. Be3 {[%clk 0:02:47.7]} 6... e5 {[%clk 0:02:59.9]}
7. Nb3 {[%clk 0:02:47.3]} 7... Be6 {[%clk 0:02:59.7]} 8. f3 {[%clk 0:02:45.3]}
8... Nbd7 {[%clk 0:02:54.3]} 9. Qd2 {[%clk 0:02:43.3]} 9... h5 {[%clk
0:02:53.9]} 10. O-O-O {[%clk 0:02:42]} 10... Qc7 {[%clk 0:02:47.4]} 11. Bd3
{[%clk 0:02:40.8]} 11... Be7 {[%clk 0:02:44.8]} 12. h3 {[%clk 0:02:37.9]} 12...
h4 {[%clk 0:02:39.8]} 13. Rhe1 {[%clk 0:02:37.2]} 13... Nh5 {[%clk 0:02:31.3]}
14. Nd5 {[%clk 0:02:33.4]} 14... Bxd5 {[%clk 0:02:30.4]} 15. exd5 {[%clk
0:02:34.3]} 15... b5 {[%clk 0:02:18.6]} 16. Na5 {[%clk 0:02:28.5]} 16... Nhf6
{[%clk 0:02:11.2]} 17. Be4 {[%clk 0:02:01.7]} 17... Rc8 {[%clk 0:02:08.6]} 18.
Nc6 {[%clk 0:02:00.7]} 18... Nb6 {[%clk 0:01:53.6]} 19. Bxb6 {[%clk 0:01:51.8]}
19... Qxb6 {[%clk 0:01:50.7]} 20. Kb1 {[%clk 0:01:39.6]} 20... Qc7 {[%clk
0:01:32.3]} 21. b3 {[%clk 0:01:26.8]} 21... Qd7 {[%clk 0:01:27.3]} 22. Qd3
{[%clk 0:01:01.7]} 22... Rh5 {[%clk 0:01:04.3]} 23. f4 {[%clk 0:00:55.8]} 23...
Nxe4 {[%clk 0:00:51.9]} 24. Qxe4 {[%clk 0:00:52.9]} 24... Bf6 {[%clk 0:00:40.1]}
25. Qf3 {[%clk 0:00:29.4]} 25... Rf5 {[%clk 0:00:33.9]} 26. Qg4 {[%clk
0:00:25.6]} 26... Kf8 {[%clk 0:00:19.1]} 27. fxe5 {[%clk 0:00:23.9]} 27... dxe5
{[%clk 0:00:15.6]} 28. Nxe5 {[%clk 0:00:21.9]} 28... Bxe5 {[%clk 0:00:08.4]} 29.
Rxe5 {[%clk 0:00:20.9]} 29... g6 {[%clk 0:00:08.3]} 30. Rxf5 {[%clk 0:00:18.6]}
30... Qxf5 {[%clk 0:00:08.6]} 31. Qxf5 {[%clk 0:00:17.5]} 31... gxf5 {[%clk
0:00:09.1]} 32. Rd4 {[%clk 0:00:16.8]} 32... Rc5 {[%clk 0:00:08.5]} 33. c4
{[%clk 0:00:15.3]} 33... Ke7 {[%clk 0:00:06.6]} 34. Rxh4 {[%clk 0:00:13.8]}
34... bxc4 {[%clk 0:00:03.3]} 35. bxc4 {[%clk 0:00:13.6]} 35... Kd6 {[%clk
0:00:03.2]} 36. Kc2 {[%clk 0:00:13.3]} 36... Ke5 {[%clk 0:00:03.6]} 37. Kc3
{[%clk 0:00:13.1]} 37... a5 {[%clk 0:00:03.1]} 38. Rh8 {[%clk 0:00:11.9]} 38...
f6 {[%clk 0:00:02.5]} 39. g3 {[%clk 0:00:11.9]} 39... Rc7 {[%clk 0:00:00.8]} 40.
Re8+ {[%clk 0:00:11.4]} 40... Kd6 {[%clk 0:00:01.2]} 41. Kd4 {[%clk 0:00:11.2]}
41... Rg7 {[%clk 0:00:00.8]} 42. c5+ {[%clk 0:00:09.7]} 42... Kd7 {[%clk
0:00:01.7]} 43. Re3 {[%clk 0:00:09.3]} 43... Rxg3 {[%clk 0:00:02.3]} 44. c6+
{[%clk 0:00:08.8]} 44... Kd6 {[%clk 0:00:02.2]} 45. Rxg3 {[%clk 0:00:09.7]}
45... f4 {[%clk 0:00:02.6]} 46. Rf3 {[%clk 0:00:09.9]} 1-0

[Event "Early-Titled-Tuesday-Blitz-May-28-2024"]
[Site "Chess.com"]
[Date "2024.05.28"]
[Round "5"]
[White "KorolDimitriy75"]
[Black "martinmena"]
[Result "0-1"]
[WhiteElo "2361"]
[BlackElo "2144"]
[TimeControl "180+1"]
[EndTime "8:57:03 PDT"]
[Termination "martinmena won on time"]

1. d4 {[%clk 0:03:00.9]} 1... d5 {[%clk 0:02:27.6]} 2. c4 {[%clk 0:03:00.5]}
2... e6 {[%clk 0:02:25.8]} 3. Nc3 {[%clk 0:03:00.8]} 3... Nf6 {[%clk 0:02:25.6]}
4. Bg5 {[%clk 0:03:01.2]} 4... Be7 {[%clk 0:02:21.7]} 5. cxd5 {[%clk 0:03:01.4]}
5... exd5 {[%clk 0:02:20.5]} 6. e3 {[%clk 0:03:01.6]} 6... Nbd7 {[%clk
0:02:18.7]} 7. Bd3 {[%clk 0:03:01.7]} 7... O-O {[%clk 0:02:15.7]} 8. Qc2 {[%clk
0:03:01.4]} 8... c6 {[%clk 0:02:14.4]} 9. Nge2 {[%clk 0:03:00.9]} 9... Re8
{[%clk 0:02:13.6]} 10. f3 {[%clk 0:03:00.9]} 10... Nf8 {[%clk 0:02:12.6]} 11.
O-O {[%clk 0:03:01.1]} 11... g6 {[%clk 0:02:09.4]} 12. Rad1 {[%clk 0:02:58.1]}
12... b6 {[%clk 0:02:01.7]} 13. h3 {[%clk 0:02:36.2]} 13... Bb7 {[%clk
0:01:49.2]} 14. e4 {[%clk 0:02:33.3]} 14... Ne6 {[%clk 0:01:36.8]} 15. Be3
{[%clk 0:01:59.7]} 15... c5 {[%clk 0:01:15.1]} 16. Bb5 {[%clk 0:01:28.5]} 16...
Rf8 {[%clk 0:00:58.4]} 17. dxc5 {[%clk 0:01:26.1]} 17... Bxc5 {[%clk 0:00:39.9]}
18. Bxc5 {[%clk 0:01:23.5]} 18... Nxc5 {[%clk 0:00:35.1]} 19. exd5 {[%clk
0:01:19]} 19... a6 {[%clk 0:00:15.5]} 20. Bc4 {[%clk 0:00:44.5]} 20... b5 {[%clk
0:00:14.7]} 21. Bb3 {[%clk 0:00:43.5]} 21... Qb6 {[%clk 0:00:14.2]} 22. Kh1
{[%clk 0:00:43.3]} 22... a5 {[%clk 0:00:14]} 23. a3 {[%clk 0:00:41.9]} 23... b4
{[%clk 0:00:12.6]} 24. axb4 {[%clk 0:00:38.7]} 24... axb4 {[%clk 0:00:13.5]} 25.
Ne4 {[%clk 0:00:37.3]} 25... Nfd7 {[%clk 0:00:01.6]} 26. N2g3 {[%clk 0:00:14.4]}
26... Rac8 {[%clk 0:00:02.1]} 27. Bc4 {[%clk 0:00:14.2]} 27... Nxe4 {[%clk
0:00:02.1]} 28. Nxe4 {[%clk 0:00:14]} 28... Ba6 {[%clk 0:00:02.6]} 29. b3 {[%clk
0:00:13.8]} 29... Ne5 {[%clk 0:00:02.7]} 30. d6 {[%clk 0:00:11.1]} 30... Nxc4
{[%clk 0:00:02.7]} 31. bxc4 {[%clk 0:00:10.2]} 31... Rxc4 {[%clk 0:00:03.2]} 32.
Qd2 {[%clk 0:00:09.6]} 32... Rd8 {[%clk 0:00:01.7]} 33. Qh6 {[%clk 0:00:08.7]}
33... Rxe4 {[%clk 0:00:01.7]} 34. fxe4 {[%clk 0:00:08.7]} 34... Rxd6 {[%clk
0:00:02.3]} 35. Rxd6 {[%clk 0:00:07.5]} 35... Qxd6 {[%clk 0:00:02.8]} 36. Re1
{[%clk 0:00:07.1]} 36... Qe5 {[%clk 0:00:02.3]} 37. Qe3 {[%clk 0:00:06.6]} 37...
Kg7 {[%clk 0:00:02.6]} 38. Qb6 {[%clk 0:00:05.8]} 38... Qc3 {[%clk 0:00:01.2]}
39. Re3 {[%clk 0:00:03.5]} 39... Qc4 {[%clk 0:00:01.8]} 40. Kh2 {[%clk
0:00:03.1]} 40... Qf1 {[%clk 0:00:01.6]} 41. Qxb4 {[%clk 0:00:01.9]} 41... Qf4+
{[%clk 0:00:02.3]} 42. Rg3 {[%clk 0:00:01]} 42... Bf1 {[%clk 0:00:02.8]} 43.
Qc3+ {[%clk 0:00:01.1]} 43... Qf6 {[%clk 0:00:03]} 44. Qe3 {[%clk 0:00:01.7]}
44... Qe5 {[%clk 0:00:03.6]} 45. h4 {[%clk 0:00:01.1]} 45... Bc4 {[%clk
0:00:03.5]} 0-1

[Event "Early-Titled-Tuesday-Blitz-May-28-2024"]
[Site "Chess.com"]
[Date "2024.05.28"]
[Round "5"]
[White "mishanick"]
[Black "Zhigalko_Sergei"]
[Result "0-1"]
[WhiteElo "3041"]
[BlackElo "2901"]
[TimeControl "180+1"]
[EndTime "8:57:04 PDT"]
[Termination "Zhigalko_Sergei won by resignation"]

1. d4 {[%clk 0:03:00.9]} 1... Nf6 {[%clk 0:03:00.3]} 2. c4 {[%clk 0:03:01.3]}
2... e6 {[%clk 0:03:00.9]} 3. Nc3 {[%clk 0:03:00.8]} 3... Bb4 {[%clk 0:03:01.2]}
4. e3 {[%clk 0:02:59]} 4... O-O {[%clk 0:03:01.4]} 5. Bd3 {[%clk 0:02:58.4]}
5... d5 {[%clk 0:02:57.6]} 6. Nf3 {[%clk 0:02:55.2]} 6... b6 {[%clk 0:02:56.8]}
7. O-O {[%clk 0:02:53]} 7... Bb7 {[%clk 0:02:56.1]} 8. cxd5 {[%clk 0:02:47.3]}
8... exd5 {[%clk 0:02:56.3]} 9. Bd2 {[%clk 0:02:40.9]} 9... Nbd7 {[%clk
0:02:37.5]} 10. Rc1 {[%clk 0:02:41]} 10... a6 {[%clk 0:02:10.5]} 11. Ne5 {[%clk
0:02:36.6]} 11... Nxe5 {[%clk 0:01:59.9]} 12. dxe5 {[%clk 0:02:36.5]} 12... Bxc3
{[%clk 0:02:00.2]} 13. Bxc3 {[%clk 0:02:32.2]} 13... Ne4 {[%clk 0:02:00.6]} 14.
Bxe4 {[%clk 0:02:32.3]} 14... dxe4 {[%clk 0:02:00.7]} 15. Qg4 {[%clk 0:02:32.4]}
15... Qe7 {[%clk 0:01:53]} 16. Rcd1 {[%clk 0:02:28.8]} 16... Rad8 {[%clk
0:01:50.3]} 17. a3 {[%clk 0:01:58.3]} 17... Qe6 {[%clk 0:01:49.9]} 18. Qg5
{[%clk 0:01:58.1]} 18... Rd3 {[%clk 0:01:43.5]} 19. Rxd3 {[%clk 0:01:54.5]}
19... exd3 {[%clk 0:01:44.4]} 20. f4 {[%clk 0:01:53]} 20... h6 {[%clk
0:01:40.1]} 21. Qg3 {[%clk 0:01:49.9]} 21... Qf5 {[%clk 0:01:23.7]} 22. h3
{[%clk 0:01:47.3]} 22... c5 {[%clk 0:01:07.8]} 23. Kh2 {[%clk 0:01:41.4]} 23...
Rd8 {[%clk 0:00:49.8]} 24. Qh4 {[%clk 0:01:35]} 24... Rd7 {[%clk 0:00:48.5]} 25.
Qf2 {[%clk 0:01:31.5]} 25... b5 {[%clk 0:00:41.1]} 26. g4 {[%clk 0:01:29.4]}
26... Qe4 {[%clk 0:00:40.1]} 27. f5 {[%clk 0:01:17.8]} 27... a5 {[%clk
0:00:26.1]} 28. b4 {[%clk 0:00:22.3]} 28... cxb4 {[%clk 0:00:19]} 29. axb4
{[%clk 0:00:23.2]} 29... d2 {[%clk 0:00:11.2]} 30. Rd1 {[%clk 0:00:20.2]} 30...
axb4 {[%clk 0:00:11.1]} 31. Bd4 {[%clk 0:00:19.7]} 31... Rc7 {[%clk 0:00:08.8]}
32. Rxd2 {[%clk 0:00:18.9]} 32... b3 {[%clk 0:00:08.9]} 33. e6 {[%clk
0:00:17.1]} 33... fxe6 {[%clk 0:00:08.1]} 34. f6 {[%clk 0:00:16.1]} 34... e5
{[%clk 0:00:08.6]} 35. Bb2 {[%clk 0:00:12.7]} 35... Rf7 {[%clk 0:00:08.3]} 36.
Rd6 {[%clk 0:00:06]} 36... Rxf6 {[%clk 0:00:06]} 37. Rxf6 {[%clk 0:00:06.2]}
37... gxf6 {[%clk 0:00:06.9]} 38. Kg3 {[%clk 0:00:06.9]} 38... Kf7 {[%clk
0:00:06.4]} 39. Qd2 {[%clk 0:00:05.8]} 39... Kg6 {[%clk 0:00:05.2]} 40. Kh4
{[%clk 0:00:05]} 40... Qf3 {[%clk 0:00:04.9]} 41. Qe1 {[%clk 0:00:02.5]} 41...
Be4 {[%clk 0:00:05.2]} 42. Bc3 {[%clk 0:00:02.5]} 42... Bd3 {[%clk 0:00:04.8]}
43. Qd2 {[%clk 0:00:02.7]} 43... Bf1 {[%clk 0:00:04.8]} 44. Qh2 {[%clk
0:00:02.2]} 44... Qxe3 {[%clk 0:00:04.9]} 45. Bd2 {[%clk 0:00:02.3]} 45... Qxh3+
{[%clk 0:00:04.2]} 46. Qxh3 {[%clk 0:00:02.6]} 46... Bxh3 {[%clk 0:00:05.1]} 47.
Bc3 {[%clk 0:00:03]} 47... Bf1 {[%clk 0:00:05.5]} 48. Kg3 {[%clk 0:00:03.9]}
48... Bd3 {[%clk 0:00:05.6]} 49. Bb2 {[%clk 0:00:04.6]} 49... h5 {[%clk
0:00:05.8]} 50. gxh5+ {[%clk 0:00:04.8]} 50... Kxh5 {[%clk 0:00:06.7]} 51. Kf3
{[%clk 0:00:05.7]} 51... Kg6 {[%clk 0:00:07]} 52. Ke3 {[%clk 0:00:06.6]} 52...
Bc2 {[%clk 0:00:07.2]} 0-1

[Event "Early-Titled-Tuesday-Blitz-May-28-2024"]
[Site "Chess.com"]
[Date "2024.05.28"]
[Round "5"]
[White "campochess"]
[Black "Pasmendjambvirgulptipon98"]
[Result "0-1"]
[WhiteElo "2120"]
[BlackElo "2362"]
[TimeControl "180+1"]
[EndTime "8:57:04 PDT"]
[Termination "Pasmendjambvirgulptipon98 won by resignation"]

1. Nc3 {[%clk 0:02:58.9]} 1... c5 {[%clk 0:02:58]} 2. e4 {[%clk 0:02:57.8]} 2...
Nc6 {[%clk 0:02:57.3]} 3. Bc4 {[%clk 0:02:57]} 3... e6 {[%clk 0:02:54.5]} 4. d3
{[%clk 0:02:55.1]} 4... Nf6 {[%clk 0:02:52.3]} 5. Bg5 {[%clk 0:02:54.4]} 5...
Be7 {[%clk 0:02:35.8]} 6. Nf3 {[%clk 0:02:52.9]} 6... d6 {[%clk 0:02:00.7]} 7.
a3 {[%clk 0:02:50.8]} 7... O-O {[%clk 0:01:53.1]} 8. O-O {[%clk 0:02:50]} 8...
h6 {[%clk 0:01:51.3]} 9. Bd2 {[%clk 0:02:47.9]} 9... a6 {[%clk 0:01:47]} 10. Ba2
{[%clk 0:02:46.3]} 10... b5 {[%clk 0:01:12.2]} 11. Re1 {[%clk 0:02:42.1]} 11...
Qc7 {[%clk 0:01:09.2]} 12. Rc1 {[%clk 0:02:38.9]} 12... Ne5 {[%clk 0:01:05.4]}
13. Bf4 {[%clk 0:02:17.4]} 13... Bb7 {[%clk 0:00:49.6]} 14. Nxe5 {[%clk
0:02:07.7]} 14... dxe5 {[%clk 0:00:49.9]} 15. Bg3 {[%clk 0:02:07.7]} 15... g6
{[%clk 0:00:40]} 16. Qd2 {[%clk 0:02:06.3]} 16... Kg7 {[%clk 0:00:36.4]} 17. f4
{[%clk 0:02:06]} 17... Nh5 {[%clk 0:00:36]} 18. f5 {[%clk 0:01:58.8]} 18... Nxg3
{[%clk 0:00:29]} 19. hxg3 {[%clk 0:01:56.9]} 19... Bg5 {[%clk 0:00:27.2]} 20.
Qe2 {[%clk 0:01:56.8]} 20... Bxc1 {[%clk 0:00:25.3]} 21. Rxc1 {[%clk 0:01:56.5]}
21... exf5 {[%clk 0:00:14.2]} 22. exf5 {[%clk 0:01:55.5]} 22... Qd6 {[%clk
0:00:14.9]} 23. Kh2 {[%clk 0:01:52.2]} 23... gxf5 {[%clk 0:00:13.3]} 24. Rf1
{[%clk 0:01:49.3]} 24... Qf6 {[%clk 0:00:09.9]} 25. Ne4 {[%clk 0:01:45.5]} 25...
Bxe4 {[%clk 0:00:09.4]} 26. dxe4 {[%clk 0:01:44.5]} 26... f4 {[%clk 0:00:09.5]}
27. Qg4+ {[%clk 0:01:39.9]} 27... Qg5 {[%clk 0:00:08.7]} 28. Qxg5+ {[%clk
0:01:31.1]} 28... hxg5 {[%clk 0:00:09.6]} 29. Kh3 {[%clk 0:01:31]} 29... Kg6
{[%clk 0:00:07.8]} 30. Kg4 {[%clk 0:01:30.7]} 30... Rh8 {[%clk 0:00:06.1]} 31.
Rd1 {[%clk 0:01:26.3]} 31... Rad8 {[%clk 0:00:06.2]} 32. Bd5 {[%clk 0:01:22.7]}
32... fxg3 {[%clk 0:00:03.6]} 33. Kxg3 {[%clk 0:01:21.8]} 33... f6 {[%clk
0:00:02.4]} 34. Rf1 {[%clk 0:01:16.1]} 34... c4 {[%clk 0:00:02.7]} 35. c3 {[%clk
0:01:14.7]} 35... Rh4 {[%clk 0:00:03]} 36. Rf3 {[%clk 0:01:08.2]} 36... Kg7
{[%clk 0:00:03.5]} 37. Kf2 {[%clk 0:01:07.8]} 37... Rf4 {[%clk 0:00:04.1]} 38.
Ke3 {[%clk 0:01:05.9]} 38... Rxf3+ {[%clk 0:00:04.1]} 39. Kxf3 {[%clk 0:01:06]}
39... Kg6 {[%clk 0:00:04.3]} 40. Ke3 {[%clk 0:01:05.5]} 40... f5 {[%clk
0:00:04.2]} 41. exf5+ {[%clk 0:01:04.6]} 41... Kxf5 {[%clk 0:00:05.1]} 42. Bb7
{[%clk 0:01:03.6]} 42... Rd6 {[%clk 0:00:05.7]} 43. Bc8+ {[%clk 0:00:59.5]}
43... Kf6 {[%clk 0:00:05.2]} 44. Bb7 {[%clk 0:00:58.8]} 44... Rd3+ {[%clk
0:00:04.4]} 45. Ke2 {[%clk 0:00:57.3]} 45... Rg3 {[%clk 0:00:02.7]} 46. Kf2
{[%clk 0:00:56.2]} 46... Rd3 {[%clk 0:00:03.4]} 47. Ke2 {[%clk 0:00:56.3]} 47...
Rd6 {[%clk 0:00:03.7]} 48. g3 {[%clk 0:00:51.1]} 48... g4 {[%clk 0:00:04.2]} 49.
Bc8 {[%clk 0:00:49.7]} 49... Kg5 {[%clk 0:00:03.9]} 50. Bb7 {[%clk 0:00:49.5]}
50... a5 {[%clk 0:00:04.3]} 51. Be4 {[%clk 0:00:45.8]} 51... Rb6 {[%clk
0:00:04.2]} 52. Ke3 {[%clk 0:00:43.1]} 52... b4 {[%clk 0:00:04.4]} 53. axb4
{[%clk 0:00:39.5]} 53... axb4 {[%clk 0:00:05.3]} 54. Bd5 {[%clk 0:00:39.2]}
54... bxc3 {[%clk 0:00:04.3]} 55. bxc3 {[%clk 0:00:39.1]} 55... Rb3 {[%clk
0:00:04.8]} 56. Kd2 {[%clk 0:00:39.1]} 56... Rb1 {[%clk 0:00:04.7]} 57. Ke3
{[%clk 0:00:39]} 57... Rg1 {[%clk 0:00:04.8]} 58. Kf2 {[%clk 0:00:38.1]} 58...
Rc1 {[%clk 0:00:05.5]} 59. Ke3 {[%clk 0:00:36.2]} 59... Rxc3+ {[%clk 0:00:06.4]}
60. Ke4 {[%clk 0:00:36.4]} 60... Rxg3 {[%clk 0:00:06.4]} 61. Bxc4 {[%clk
0:00:35.7]} 61... Rg1 {[%clk 0:00:05.9]} 62. Kxe5 {[%clk 0:00:35.3]} 62... Re1+
{[%clk 0:00:06.6]} 63. Kd4 {[%clk 0:00:35.1]} 63... g3 {[%clk 0:00:07.4]} 64.
Kd3 {[%clk 0:00:35.3]} 64... g2 {[%clk 0:00:07.8]} 65. Kd2 {[%clk 0:00:34.3]}
65... g1=Q {[%clk 0:00:08.3]} 0-1

[Event "Early-Titled-Tuesday-Blitz-May-28-2024"]
[Site "Chess.com"]
[Date "2024.05.28"]
[Round "5"]
[White "Statham_01"]
[Black "Bob_2004"]
[Result "0-1"]
[WhiteElo "2717"]
[BlackElo "2521"]
[TimeControl "180+1"]
[EndTime "8:57:10 PDT"]
[Termination "Bob_2004 won by checkmate"]

1. e4 {[%clk 0:03:00.9]} 1... c5 {[%clk 0:02:57.7]} 2. a3 {[%clk 0:03:00.5]}
2... d5 {[%clk 0:02:52.8]} 3. exd5 {[%clk 0:02:59.8]} 3... Qxd5 {[%clk
0:02:52.4]} 4. Nc3 {[%clk 0:02:59.7]} 4... Qe6+ {[%clk 0:02:48.4]} 5. Be2 {[%clk
0:02:57.6]} 5... Nc6 {[%clk 0:02:48.7]} 6. Nf3 {[%clk 0:02:57.1]} 6... g6 {[%clk
0:02:49]} 7. Nb5 {[%clk 0:02:52.6]} 7... Qd7 {[%clk 0:02:47.6]} 8. O-O {[%clk
0:02:35.4]} 8... Bg7 {[%clk 0:02:47.4]} 9. d4 {[%clk 0:02:21.9]} 9... a6 {[%clk
0:02:45.3]} 10. d5 {[%clk 0:02:18.7]} 10... axb5 {[%clk 0:02:36.7]} 11. Bxb5
{[%clk 0:02:19.6]} 11... Nf6 {[%clk 0:02:37.2]} 12. dxc6 {[%clk 0:02:08]} 12...
bxc6 {[%clk 0:02:38.1]} 13. Ne5 {[%clk 0:01:48.2]} 13... Qxd1 {[%clk 0:02:32.4]}
14. Bxc6+ {[%clk 0:01:47.4]} 14... Qd7 {[%clk 0:02:31.6]} 15. Nxd7 {[%clk
0:01:47.3]} 15... Nxd7 {[%clk 0:01:49.2]} 16. Bxa8 {[%clk 0:01:46.4]} 16... Kd8
{[%clk 0:01:49.8]} 17. c3 {[%clk 0:01:35.2]} 17... Kc7 {[%clk 0:01:46.8]} 18.
Re1 {[%clk 0:01:22.8]} 18... e6 {[%clk 0:01:39.1]} 19. Bf4+ {[%clk 0:01:19.7]}
19... e5 {[%clk 0:01:37.1]} 20. Be3 {[%clk 0:01:17.2]} 20... f5 {[%clk
0:01:27.4]} 21. f3 {[%clk 0:00:58.3]} 21... Nb6 {[%clk 0:01:24.1]} 22. Bf4
{[%clk 0:00:27.2]} 22... Re8 {[%clk 0:01:17.2]} 23. b4 {[%clk 0:00:18.8]} 23...
Nxa8 {[%clk 0:01:16.6]} 24. bxc5 {[%clk 0:00:18.7]} 24... Kc6 {[%clk 0:01:13]}
25. Be3 {[%clk 0:00:15.5]} 25... Nc7 {[%clk 0:01:05.7]} 26. c4 {[%clk
0:00:13.6]} 26... Ne6 {[%clk 0:00:59.1]} 27. Rab1 {[%clk 0:00:11.2]} 27... Nxc5
{[%clk 0:00:59.7]} 28. Rb5 {[%clk 0:00:10.5]} 28... Bf8 {[%clk 0:00:54.3]} 29.
Reb1 {[%clk 0:00:10.3]} 29... Rd8 {[%clk 0:00:49.1]} 30. Rb6+ {[%clk 0:00:09.5]}
30... Kc7 {[%clk 0:00:49.6]} 31. R6b5 {[%clk 0:00:06.9]} 31... Na4 {[%clk
0:00:41.4]} 32. Ra5 {[%clk 0:00:05.1]} 32... Rd3 {[%clk 0:00:41.9]} 33. Bf2
{[%clk 0:00:03.3]} 33... Nc3 {[%clk 0:00:37.1]} 34. Re1 {[%clk 0:00:03]} 34...
e4 {[%clk 0:00:30.8]} 35. fxe4 {[%clk 0:00:03.6]} 35... Nxe4 {[%clk 0:00:31.5]}
36. Re5 {[%clk 0:00:02.5]} 36... Bd6 {[%clk 0:00:28.5]} 37. Re8 {[%clk
0:00:02.3]} 37... Bxa3 {[%clk 0:00:25.6]} 38. Rh8 {[%clk 0:00:02.3]} 38... h5
{[%clk 0:00:19]} 39. Be3 {[%clk 0:00:02.5]} 39... Rxe3 {[%clk 0:00:18.5]} 40.
Rh7+ {[%clk 0:00:02]} 40... Kd6 {[%clk 0:00:18.2]} 41. Rxe3 {[%clk 0:00:02]}
41... Bc5 {[%clk 0:00:18.8]} 42. Rg7 {[%clk 0:00:01.8]} 42... Bxe3+ {[%clk
0:00:19.4]} 43. Kf1 {[%clk 0:00:02.7]} 43... g5 {[%clk 0:00:16.7]} 44. Rg6+
{[%clk 0:00:03.6]} 44... Ke5 {[%clk 0:00:16.8]} 45. Rc6 {[%clk 0:00:03]} 45...
Be6 {[%clk 0:00:16.9]} 46. g3 {[%clk 0:00:02]} 46... Bxc4+ {[%clk 0:00:16.4]}
47. Rxc4 {[%clk 0:00:02.1]} 47... Nd2+ {[%clk 0:00:16.6]} 48. Ke2 {[%clk
0:00:03]} 48... Nxc4 {[%clk 0:00:17.5]} 49. h4 {[%clk 0:00:03.7]} 49... gxh4
{[%clk 0:00:17.7]} 50. gxh4 {[%clk 0:00:03.9]} 50... Kf4 {[%clk 0:00:18.6]} 51.
Kf1 {[%clk 0:00:04.2]} 51... Kf3 {[%clk 0:00:18.3]} 52. Ke1 {[%clk 0:00:04.6]}
52... Bf2+ {[%clk 0:00:18.9]} 53. Kf1 {[%clk 0:00:05.5]} 53... Ne3# {[%clk
0:00:19.1]} 0-1

[Event "Early-Titled-Tuesday-Blitz-May-28-2024"]
[Site "Chess.com"]
[Date "2024.05.28"]
[Round "5"]
[White "David_ATM"]
[Black "DrCeltic"]
[Result "1-0"]
[WhiteElo "2451"]
[BlackElo "2578"]
[TimeControl "180+1"]
[EndTime "8:57:10 PDT"]
[Termination "David_ATM won on time"]

1. e4 {[%clk 0:03:00.9]} 1... c5 {[%clk 0:02:59.3]} 2. c3 {[%clk 0:03:00.9]}
2... Nf6 {[%clk 0:02:59.1]} 3. e5 {[%clk 0:03:01.3]} 3... Nd5 {[%clk 0:02:59.7]}
4. d4 {[%clk 0:03:02.2]} 4... e6 {[%clk 0:02:59.4]} 5. Nf3 {[%clk 0:03:03.1]}
5... cxd4 {[%clk 0:02:59.6]} 6. cxd4 {[%clk 0:03:04]} 6... d6 {[%clk 0:03:00.2]}
7. Bc4 {[%clk 0:03:03.9]} 7... Nc6 {[%clk 0:02:59.4]} 8. O-O {[%clk 0:03:03.5]}
8... Nb6 {[%clk 0:02:58.1]} 9. Bd3 {[%clk 0:03:02.2]} 9... Bd7 {[%clk
0:02:57.8]} 10. Qe2 {[%clk 0:03:01.8]} 10... a6 {[%clk 0:02:56.8]} 11. Nc3
{[%clk 0:03:01.7]} 11... d5 {[%clk 0:02:54.8]} 12. Bg5 {[%clk 0:02:56.7]} 12...
Be7 {[%clk 0:02:54.6]} 13. Bxe7 {[%clk 0:02:52.4]} 13... Qxe7 {[%clk 0:02:55.5]}
14. Rac1 {[%clk 0:02:49.2]} 14... Rc8 {[%clk 0:02:54.7]} 15. Bb1 {[%clk
0:02:48.8]} 15... Na5 {[%clk 0:02:42.6]} 16. b3 {[%clk 0:02:37.9]} 16... O-O
{[%clk 0:02:35.5]} 17. h3 {[%clk 0:02:35.3]} 17... Nc6 {[%clk 0:02:24.7]} 18.
Qd3 {[%clk 0:02:32.3]} 18... g6 {[%clk 0:02:24.3]} 19. Nh2 {[%clk 0:02:31.9]}
19... Nb4 {[%clk 0:02:20.8]} 20. Qd2 {[%clk 0:02:31.8]} 20... f5 {[%clk
0:02:05.2]} 21. exf6 {[%clk 0:02:27.6]} 21... Qxf6 {[%clk 0:02:02.4]} 22. Ng4
{[%clk 0:02:28.2]} 22... Qe7 {[%clk 0:01:55.3]} 23. Rfe1 {[%clk 0:02:15.9]}
23... Nc6 {[%clk 0:01:48.2]} 24. a4 {[%clk 0:02:03.9]} 24... Qg7 {[%clk
0:01:44.6]} 25. Ne5 {[%clk 0:01:57.1]} 25... Nxe5 {[%clk 0:01:39.9]} 26. Rxe5
{[%clk 0:01:58]} 26... Rf6 {[%clk 0:01:26.6]} 27. Rce1 {[%clk 0:01:48.8]} 27...
Rcf8 {[%clk 0:01:25.6]} 28. f3 {[%clk 0:01:49]} 28... Nc8 {[%clk 0:01:18.8]} 29.
Nd1 {[%clk 0:01:42.6]} 29... Nd6 {[%clk 0:01:16]} 30. Nf2 {[%clk 0:01:42.9]}
30... Rf4 {[%clk 0:00:53.4]} 31. Qb4 {[%clk 0:01:21.2]} 31... Nf5 {[%clk
0:00:20.1]} 32. Bxf5 {[%clk 0:01:20.2]} 32... R4xf5 {[%clk 0:00:19]} 33. Qxb7
{[%clk 0:01:17.5]} 33... a5 {[%clk 0:00:18.5]} 34. Nd3 {[%clk 0:01:12.7]} 34...
Bc8 {[%clk 0:00:17]} 35. Qxg7+ {[%clk 0:01:11.6]} 35... Kxg7 {[%clk 0:00:17.9]}
36. Nc5 {[%clk 0:01:08.8]} 36... Rxe5 {[%clk 0:00:16.7]} 37. Rxe5 {[%clk
0:01:09.7]} 37... Kf6 {[%clk 0:00:15.4]} 38. f4 {[%clk 0:01:00.5]} 38... h6
{[%clk 0:00:15.3]} 39. h4 {[%clk 0:00:59]} 39... Rg8 {[%clk 0:00:14.5]} 40. g3
{[%clk 0:00:59.2]} 40... Rg7 {[%clk 0:00:14.2]} 41. Kf2 {[%clk 0:00:59.3]} 41...
Rc7 {[%clk 0:00:14.4]} 42. Ke3 {[%clk 0:00:56.8]} 42... Rc6 {[%clk 0:00:14.8]}
43. Kd3 {[%clk 0:00:57]} 43... Rb6 {[%clk 0:00:14.9]} 44. Kc3 {[%clk 0:00:56.9]}
44... Rb4 {[%clk 0:00:15.2]} 45. h5 {[%clk 0:00:37.5]} 45... g5 {[%clk
0:00:11.9]} 46. fxg5+ {[%clk 0:00:37.1]} 46... hxg5 {[%clk 0:00:12.8]} 47. h6
{[%clk 0:00:37.7]} 47... Kg6 {[%clk 0:00:12.6]} 48. Rxg5+ {[%clk 0:00:24.4]}
48... Kxh6 {[%clk 0:00:10]} 49. Re5 {[%clk 0:00:25]} 49... Rb6 {[%clk
0:00:09.4]} 50. Kd3 {[%clk 0:00:20.9]} 50... Kg6 {[%clk 0:00:09.6]} 51. Ke3
{[%clk 0:00:20.6]} 51... Kf6 {[%clk 0:00:10]} 52. g4 {[%clk 0:00:21.2]} 52...
Ba6 {[%clk 0:00:09.3]} 53. Kf4 {[%clk 0:00:10.5]} 53... Bf1 {[%clk 0:00:08.9]}
54. Re1 {[%clk 0:00:10.2]} 54... Ba6 {[%clk 0:00:07.6]} 55. Nd7+ {[%clk
0:00:10.4]} 1-0